fUSD/lending_fUSD_20241225
["ID","MTS","AMOUNT","RATE_DAILY","PERIOD"]
[346569005,1735098638826,-156.473705,0.00012912,2]
[346569006,1735098638838,-2727.15143,0.00012912,2]
[346569007,1735098638848,-155.201585,0.00012912,2]
[346569008,1735098638858,-500.0,0.00012912,2]
[346569009,1735098638869,-529.48,0.00012912,2]
[346569010,1735098638880,-500.0,0.00012912,2]
[346569011,1735098638889,-2803.430579,0.00012912,2]
[346569012,1735098638898,-500.0,0.00012912,2]
[346569013,1735098638907,-623.84,0.00012912,2]
[346569014,1735098638916,-500.0,0.00012912,2]
[346569015,1735098638925,-949.04,0.00012912,2]
[346569016,1735098638934,-500.0,0.00012912,2]
[346569017,1735098638943,-3077.2,0.00012912,2]
[346569018,1735098638953,-500.0,0.00012912,2]
[346569020,1735098638962,-749.51,0.00012912,2]
[346569022,1735098638971,-19085.78,0.00012912,2]
[346569024,1735098638980,-500.0,0.00012912,2]
[346569025,1735098638989,-504.5508978,0.00012912,2]
[346569026,1735098638998,-627.91,0.00012912,2]
[346569028,1735098639007,-500.0,0.00012912,2]
[346569030,1735098639017,-1490.12,0.00012912,2]
[346569031,1735098639026,-500.0,0.00012912,2]
[346569032,1735098639036,-5304.99,0.00012912,2]
[346569033,1735098639045,-906.25,0.00012912,2]
[346569034,1735098639054,-500.0,0.00012912,2]
[346569035,1735098639063,-830.91,0.00012912,2]
[346569036,1735098639072,-500.0,0.00012912,2]
[346569037,1735098639082,-500.0,0.00012912,2]
[346569038,1735098639091,-500.0,0.00012912,2]
[346569039,1735098639100,-500.0,0.00012912,2]
[346569040,1735098639109,-500.0,0.00012912,2]
[346569041,1735098639118,-500.0,0.00012912,2]
[346569042,1735098639127,-639.99564481,0.00012912,2]
[346569043,1735098639137,-617.55659053,0.00012912,2]
[346569044,1735098639146,-500.0,0.00012912,2]
[346569045,1735098639155,-4515.97,0.00012912,2]
[346569046,1735098639164,-500.0,0.00012912,2]
[346569047,1735098639174,-216.40169243,0.00012912,2]
[346569048,1735098639187,-283.59830757,0.00012912,2]
[346569049,1735098639196,-581.46,0.00012912,2]
[346569050,1735098639206,-264.56367624,0.00012912,2]
[346569051,1735098639214,-2234.69,0.00012912,2]
[346569052,1735098639224,-500.0,0.00012912,2]
[346569053,1735098639233,-573.38,0.00012912,2]
[346569054,1735098639242,-8244.65,0.00012912,2]
[346569055,1735098639251,-500.0,0.00012912,2]
[346569056,1735098639260,-500.0,0.00012912,2]
[346569057,1735098639269,-4596.23,0.00012912,2]
[346569058,1735098639279,-500.0,0.00012912,2]
[346569059,1735098639288,-4066.2,0.00012912,2]
[346569060,1735098639297,-500.0,0.00012912,2]
[346569061,1735098639306,-7491.95,0.00012912,2]
[346569062,1735098639315,-1034.71,0.00012912,2]
[346569063,1735098639324,-500.0,0.00012912,2]
[346569064,1735098639334,-500.0,0.00012912,2]
[346569065,1735098639343,-500.0,0.00012912,2]
[346569066,1735098639351,-24900.96,0.00012912,2]
[346569067,1735098639361,-194.86332277,0.00012912,2]
[346569068,1735098639370,-500.0,0.00012912,2]
[346569069,1735098639379,-500.0,0.00012912,2]
[346569070,1735098639388,-722.44,0.00012912,2]
[346569071,1735098639398,-754.45,0.00012912,2]
[346569072,1735098639407,-500.0,0.00012912,2]
[346569073,1735098639416,-500.0,0.00012912,2]
[346569074,1735098639429,-28458.38,0.00012912,2]
[346569075,1735098639438,-512.00473698,0.00012912,2]
[346569076,1735098639447,-2335.08,0.00012912,2]
[346569077,1735098639457,-500.0,0.00012912,2]
[346569078,1735098639467,-505.45,0.00012912,2]
[346569079,1735098639476,-4604.19,0.00012912,2]
[346569080,1735098639485,-509.64324748,0.00012912,2]
[346569081,1735098639495,-2601.41,0.00012912,2]
[346569082,1735098639504,-500.0,0.00012912,2]
[346569083,1735098639514,-500.0,0.00012912,2]
[346569084,1735098639524,-5121.7,0.00012912,2]
[346569085,1735098639533,-500.0,0.00012912,2]
[346569086,1735098639542,-500.0,0.00012912,2]
[346569087,1735098639552,-601.29,0.00012912,2]
[346569088,1735098639561,-500.0,0.00012912,2]
[346569089,1735098639570,-1320.7,0.00012912,2]
[346569090,1735098639579,-3593.72,0.00012912,2]
[346569091,1735098639588,-666.22,0.00012912,2]
[346569092,1735098639597,-1058.04,0.00012912,2]
[346569093,1735098639607,-9489.16,0.00012912,2]
[346569094,1735098639616,-500.0,0.00012912,2]
[346569095,1735098639626,-500.0,0.00012912,2]
[346569096,1735098639635,-7833.36,0.00012912,2]
[346569097,1735098639644,-692.72,0.00012912,2]
[346569098,1735098639653,-4919.48,0.00012912,2]
[346569099,1735098639663,-885.5,0.00012912,2]
[346569100,1735098639673,-632.05,0.00012912,2]
[346569101,1735098639682,-764.4,0.00012912,2]
[346569102,1735098639692,-15640.98,0.00012912,2]
[346569103,1735098639703,-687.06,0.00012912,2]
[346569104,1735098639712,-500.0,0.00012912,2]
[346569105,1735098639724,-500.0,0.00012912,2]
[346569106,1735098639734,-500.0,0.00012912,2]
[346569107,1735098639743,-500.0,0.00012912,2]
[346569108,1735098639753,-13775.99,0.00012912,2]
[346569109,1735098639762,-500.0,0.00012912,2]
[346569110,1735098639963,-6916.75,0.00012912,2]
[346569111,1735098639973,-501.94867314,0.00012912,2]
[346569112,1735098639982,-500.0,0.00012912,2]
[346569113,1735098639992,-172.466807,0.00012912,2]
[346569114,1735098640001,-500.0,0.00012912,2]
[346569115,1735098640010,-500.0,0.00012912,2]
[346569116,1735098640019,-752.3,0.00012912,2]
[346569117,1735098640028,-500.0,0.00012912,2]
[346569118,1735098640038,-500.0,0.00012912,2]
[346569119,1735098640047,-500.0,0.00012912,2]
[346569120,1735098640056,-17683.08,0.00012912,2]
[346569121,1735098640065,-4546.52,0.00012912,2]
[346569122,1735098640075,-500.0,0.00012912,2]
[346569123,1735098640084,-500.0,0.00012912,2]
[346569124,1735098640094,-895.64,0.00012912,2]
[346569125,1735098640103,-2578.63,0.00012913,2]
[346569126,1735098640113,-500.0,0.00012913,2]
[346569127,1735098640122,-500.0,0.00012913,2]
[346569128,1735098640132,-802.56,0.00012913,2]
[346569129,1735098640141,-500.0,0.00012913,2]
[346569130,1735098640151,-502.54953715,0.00012913,2]
[346569131,1735098640160,-1947.75,0.00012913,2]
[346569132,1735098640169,-730.23,0.00012913,2]
[346569133,1735098640179,-500.0,0.00012913,2]
[346569134,1735098640188,-1225.45,0.00012913,2]
[346569135,1735098640197,-1359.4,0.00012913,2]
[346569136,1735098640208,-500.0,0.00012913,2]
[346569137,1735098640218,-506.81612384,0.00012913,2]
[346569138,1735098640228,-1797.86,0.00012913,2]
[346569139,1735098640238,-500.0,0.00012913,2]
[346569140,1735098640247,-2183.96,0.00012913,2]
[346569141,1735098640256,-500.0,0.00012913,2]
[346569142,1735098640266,-500.0,0.00012913,2]
[346569143,1735098640275,-500.0,0.00012913,2]
[346569144,1735098640285,-500.0,0.00012913,2]
[346569145,1735098640294,-1440.39,0.00012913,2]
[346569146,1735098640303,-1123.92,0.00012913,2]
[346569147,1735098640312,-500.0,0.00012913,2]
[346569148,1735098640321,-1152.93,0.00012913,2]
[346569149,1735098640331,-500.0,0.00012913,2]
[346569150,1735098640340,-500.0,0.00012913,2]
[346569151,1735098640349,-426.24724701,0.00012913,2]
[346569153,1735098640359,-879.08,0.00012913,2]
[346569154,1735098640368,-500.0,0.00012913,2]
[346569155,1735098640377,-393.97509725,0.00012913,2]
[346569156,1735098640386,-1163.53,0.00012913,2]
[346569157,1735098640395,-500.0,0.00012913,2]
[346569158,1735098640404,-500.0,0.00012913,2]
[346569159,1735098640413,-500.0,0.00012913,2]
[346569160,1735098640426,-1785.07,0.00012913,2]
[346569161,1735098640435,-1907.16,0.00012913,2]
[346569162,1735098640444,-500.0,0.00012913,2]
[346569163,1735098640454,-500.0,0.00012913,2]
[346569164,1735098640463,-793.73,0.00012913,2]
[346569165,1735098640474,-500.0,0.00012913,2]
[346569166,1735098640483,-218.44753096,0.00012913,2]
[346569167,1735098640492,-500.0,0.00012913,2]
[346569168,1735098640502,-500.0,0.00012913,2]
[346569169,1735098640511,-701.94,0.00012913,2]
[346569170,1735098640520,-500.0,0.00012913,2]
[346569171,1735098640529,-2543.6,0.00012913,2]
[346569172,1735098640538,-617.47,0.00012913,2]
[346569173,1735098640547,-500.0,0.00012913,2]
[346569174,1735098640556,-500.0,0.00012913,2]
[346569175,1735098640565,-500.0,0.00012913,2]
[346569176,1735098640574,-500.0,0.00012913,2]
[346569177,1735098640583,-447.59485472,0.00012913,2]
[346569178,1735098640593,-500.0,0.00012913,2]
[346569179,1735098640602,-2150.69,0.00012913,2]
[346569180,1735098640611,-500.0,0.00012913,2]
[346569181,1735098640620,-500.0,0.00012913,2]
[346569182,1735098640629,-500.0,0.00012913,2]
[346569183,1735098640638,-500.0,0.00012913,2]
[346569184,1735098640648,-500.0,0.00012913,2]
[346569185,1735098640657,-627.44,0.00012913,2]
[346569186,1735098640666,-500.0,0.00012913,2]
[346569187,1735098640676,-514.14,0.00012913,2]
[346569188,1735098640685,-500.0,0.00012913,2]
[346569189,1735098640694,-500.0,0.00012913,2]
[346569190,1735098640704,-1964.83,0.00012913,2]
[346569191,1735098640714,-645.58,0.00012913,2]
[346569192,1735098640723,-441.96107309,0.00012913,2]
[346569193,1735098640732,-500.0,0.00012913,2]
[346569194,1735098640741,-500.0,0.00012913,2]
[346569195,1735098640750,-500.0,0.00012913,2]
[346569196,1735098640759,-500.0,0.00012913,2]
[346569197,1735098640768,-233.15635854,0.00012913,2]
[346569198,1735098640778,-1281.59,0.00012913,2]
[346569199,1735098640787,-500.0,0.00012913,2]
[346569200,1735098640796,-310.33075981,0.00012913,2]
[346569201,1735098640806,-560.11,0.00012913,2]
[346569202,1735098640815,-635.4973224,0.00012913,2]
[346569203,1735098640825,-2207.34,0.00012913,2]
[346569204,1735098640835,-500.0,0.00012913,2]
[346569205,1735098640844,-500.0,0.00012913,2]
[346569206,1735098640853,-500.0,0.00012913,2]
[346569207,1735098640863,-1221.68,0.00012913,2]
[346569208,1735098640872,-500.0,0.00012913,2]
[346569209,1735098640881,-500.0,0.00012913,2]
[346569210,1735098640890,-3171.69,0.00012913,2]
[346569211,1735098640899,-500.0,0.00012913,2]
[346569212,1735098640909,-932.12,0.00012913,2]
[346569213,1735098640918,-1581.23,0.00012913,2]
[346569214,1735098640927,-742.72,0.00012913,2]
[346569215,1735098640936,-500.0,0.00012913,2]
[346569216,1735098640946,-1567.39,0.00012913,2]
[346569217,1735098640955,-528.4,0.00012913,2]
[346569218,1735098640964,-500.0,0.00012913,2]
[346569219,1735098640974,-840.63,0.00012913,2]
[346569220,1735098640983,-1191.22,0.00012913,2]
[346569221,1735098640992,-1138.83,0.00012913,2]
[346569222,1735098641001,-2186.74,0.00012913,2]
[346569223,1735098641010,-500.0,0.00012913,2]
[346569224,1735098641020,-500.0,0.00012913,2]
[346569225,1735098641029,-500.0,0.00012913,2]
[346569226,1735098641038,-1708.02,0.00012913,2]
[346569227,1735098641047,-3101.1087486,0.00012913,2]
[346569309,1735098641842,-208.5512514,0.00012913,2]
[346569311,1735098641852,-1890.59647193,0.00012913,2]
[346569313,1735098641863,-914.94104856,0.00012913,2]
[346569315,1735098641875,-3516.96247951,0.00012913,2]
[346569317,1735098641884,-1672.7,0.00012913,2]
[346569319,1735098641893,-1656.03,0.00012913,2]
[346569321,1735098641904,-2014.24,0.00012913,2]
[346569323,1735098641913,-1347.45,0.00012913,2]
[346569348,1735098642136,-500.0,0.00012913,2]
[346569350,1735098642146,-823.89,0.00012913,2]
[346569352,1735098642156,-2403.68245859,0.00012913,2]
[346569405,1735098642985,-500.0,0.00012912,2]
[346569406,1735098642996,-781.56754141,0.00012913,2]
[346569407,1735098643006,-273.13233626,0.00012913,2]
[346569408,1735098643016,-1044.63,0.00012913,2]
[346569409,1735098643025,-1684.75231972,0.00012913,2]
[346569410,1735098643036,-808.37339128,0.00012913,2]
[346569411,1735098643136,-1965.214289,0.00012913,2]
[346569412,1735098643145,-500.0,0.00012913,2]
[346569413,1735098643155,-1015.09,0.00012913,2]
[346569414,1735098643164,-795.22,0.00012913,2]
[346569415,1735098643174,-174.20092885,0.00012913,2]
[346569416,1735098643185,-364.58907115,0.00012913,2]
[346569417,1735098643195,-500.0,0.00012913,2]
[346569418,1735098643206,-600.17,0.00012913,2]
[346569419,1735098643215,-1729.8,0.00012913,2]
[346569420,1735098643225,-1897.26506808,0.00012913,2]
[346569421,1735098643236,-1517.55493192,0.00012913,2]
[346569422,1735098643245,-509.42381043,0.00012913,2]
[346569423,1735098643255,-3433.82,0.00012913,2]
[346569424,1735098643264,-4041.31,0.00012913,2]
[346569425,1735098643272,-500.0,0.00012913,2]
[346569426,1735098643282,-500.0,0.00012913,2]
[346569427,1735098643292,-2148.84,0.00012913,2]
[346569428,1735098643301,-511.72919231,0.00012913,2]
[346569429,1735098643310,-777.02,0.00012913,2]
[346569430,1735098643320,-1593.45,0.00012913,2]
[346569431,1735098643329,-500.0,0.00012913,2]
[346569432,1735098643339,-151.0,0.00012913,2]
[346569433,1735098643348,-151.0,0.00012913,2]
[346569434,1735098643358,-151.0,0.00012913,2]
[346569435,1735098643367,-599.74,0.00012913,2]
[346569436,1735098643376,-11183.53,0.00012913,2]
[346569438,1735098643385,-151.0,0.00012913,2]
[346569439,1735098643395,-5610.22,0.00012913,2]
[346569441,1735098643404,-500.0,0.00012913,2]
[346569443,1735098643414,-1203.36,0.00012913,2]
[346569445,1735098643426,-1915.12,0.00012913,2]
[346569447,1735098643436,-298.595958,0.00012913,2]
[346569448,1735098643446,-298.595958,0.00012913,2]
[346569449,1735098643458,-298.595958,0.00012913,2]
[346569450,1735098643471,-298.595958,0.00012913,2]
[346569451,1735098643480,-298.595958,0.00012913,2]
[346569452,1735098643490,-298.595958,0.00012913,2]
[346569453,1735098643501,-298.595958,0.00012913,2]
[346569454,1735098643510,-298.595958,0.00012913,2]
[346569455,1735098643519,-6947.9,0.00012913,2]
[346569456,1735098643529,-2667.09,0.00012913,2]
[346569457,1735098643538,-1773.22,0.00012913,2]
[346569458,1735098643547,-500.0,0.00012913,2]
[346569459,1735098643555,-500.0,0.00012913,2]
[346569460,1735098643564,-533.28,0.00012913,2]
[346569461,1735098643574,-5768.72,0.00012913,2]
[346569462,1735098643584,-1253.95279704,0.00012913,2]
[346569463,1735098643595,-442.61210009,0.00012913,2]
[346569464,1735098643607,-5607.77678729,0.00012913,2]
[346569465,1735098643618,-437.5677695,0.00012913,2]
[346569466,1735098643629,-2578.31054608,0.00012913,2]
[346569467,1735098643639,-32.66385187,0.00012913,2]
[346569468,1735098643649,-466.5999998,0.00012913,2]
[346569473,1735098644775,-724.82,0.00012911,2]
[346569474,1735098644785,-0.73614833,0.00012913,2]
[346569475,1735098644794,-213.45216673,0.00012913,2]
[346569476,1735098644805,-286.54783327,0.00012913,2]
[346569477,1735098644814,-151.0,0.00012913,2]
[346569478,1735098644823,-151.0,0.00012913,2]
[346569479,1735098644833,-151.0,0.00012913,2]
[346569480,1735098644842,-719.39,0.00012913,2]
[346569481,1735098644852,-151.00636,0.00012913,2]
[346569482,1735098644860,-3390.05580673,0.00012913,2]
[346569483,1735098644872,-2163.27419327,0.00012913,2]
[346569484,1735098644881,-1587.59,0.00012913,2]
[346569485,1735098644890,-6055.93,0.00012913,2]
[346569486,1735098644900,-1975.26,0.00012913,2]
[346569487,1735098644909,-1536.63028786,0.00012913,2]
[346569488,1735098644921,-249.92971214,0.00012913,2]
[346569489,1735098644930,-510.7179749,0.00012913,2]
[346569490,1735098644939,-510.53257599,0.00012913,2]
[346569491,1735098644951,-1408.93,0.00012913,2]
[346569492,1735098644962,-4126.72823237,0.00012913,2]
[346569493,1735098644973,-9849.16828037,0.00012913,2]
[346569494,1735098644984,-8847.32969744,0.00012913,2]
[346569495,1735098644995,-3576.32378982,0.00012913,2]
[346569496,1735098645005,-500.0,0.00012913,2]
[346569497,1735098645014,-1287.502617,0.00012913,2]
[346569498,1735098645025,-814.50245992,0.00012913,2]
[346569499,1735098645036,-191.70492308,0.00012913,2]
[346569500,1735098645046,-413.09507392,0.00012913,2]
[346569501,1735098645083,-88.38897948,0.00012913,2]
[346569502,1735098645092,-347.25243367,0.00012913,2]
[346569503,1735098645104,-978.79830355,0.00012913,2]
[346569506,1735098646678,-696.86,0.00012912,2]
[346569507,1735098646689,-1342.65926278,0.00012913,2]
[346569508,1735098646699,-500.0,0.00012913,2]
[346569509,1735098646709,-500.0,0.00012913,2]
[346569510,1735098646718,-606.104058,0.00012913,2]
[346569511,1735098646727,-606.104058,0.00012913,2]
[346569512,1735098646737,-606.104058,0.00012913,2]
[346569513,1735098646746,-606.104058,0.00012913,2]
[346569514,1735098646756,-500.0,0.00012913,2]
[346569515,1735098646765,-6714.09,0.00012913,2]
[346569516,1735098646774,-606.104058,0.00012913,2]
[346569517,1735098646783,-606.104058,0.00012913,2]
[346569518,1735098646792,-500.0,0.00012913,2]
[346569519,1735098646802,-606.104058,0.00012913,2]
[346569520,1735098646811,-606.104058,0.00012913,2]
[346569521,1735098646820,-2636.54,0.00012913,2]
[346569522,1735098646830,-500.0,0.00012913,2]
[346569523,1735098646839,-1179.15,0.00012913,2]
[346569524,1735098646849,-500.0,0.00012913,2]
[346569525,1735098646858,-1847.35,0.00012913,2]
[346569526,1735098646867,-1917.58,0.00012913,2]
[346569527,1735098646877,-10856.72,0.00012913,2]
[346569528,1735098646886,-500.0,0.00012913,2]
[346569529,1735098646895,-18828.72,0.00012913,2]
[346569530,1735098646904,-561.39,0.00012913,2]
[346569531,1735098646914,-503.43673227,0.00012913,2]
[346569532,1735098646923,-250.12279235,0.00012913,2]
[346569533,1735098646932,-1967.89,0.00012913,2]
[346569534,1735098646942,-507.857586,0.00012913,2]
[346569535,1735098646951,-10046.96,0.00012913,2]
[346569536,1735098646961,-500.0,0.00012913,2]
[346569537,1735098646971,-2783.62246633,0.00012914,2]
[346569538,1735098646979,-80515.64279349,0.00012914,2]
[346569539,1735098646988,-200.11,0.00012914,2]
[346569540,1735098646997,-856.51,0.00012914,2]
[346569541,1735098647006,-500.0,0.00012914,2]
[346569542,1735098647015,-500.0,0.00012914,2]
[346569543,1735098647025,-1785.8,0.00012914,2]
[346569544,1735098647034,-500.0,0.00012914,2]
[346569545,1735098647044,-500.0,0.00012914,2]
[346569546,1735098647053,-500.0,0.00012914,2]
[346569548,1735098647062,-500.0,0.00012914,2]
[346569550,1735098647072,-500.0,0.00012914,2]
[346569552,1735098647081,-500.0,0.00012914,2]
[346569554,1735098647090,-1710.6,0.00012914,2]
[346569556,1735098647100,-500.0,0.00012914,2]
[346569558,1735098647109,-1075.76,0.00012914,2]
[346569560,1735098647118,-500.0,0.00012914,2]
[346569562,1735098647127,-500.0,0.00012914,2]
[346569564,1735098647136,-500.0,0.00012914,2]
[346569566,1735098647145,-500.0,0.00012914,2]
[346569568,1735098647155,-500.0,0.00012914,2]
[346569570,1735098647163,-539.23838727,0.00012914,2]
[346569572,1735098647172,-500.0,0.00012914,2]
[346569574,1735098647181,-508.88895342,0.00012914,2]
[346569576,1735098647191,-1574.73,0.00012914,2]
[346569578,1735098647200,-827.53,0.00012914,2]
[346569580,1735098647209,-728.5,0.00012914,2]
[346569582,1735098647218,-1140.31,0.00012914,2]
[346569584,1735098647227,-500.0,0.00012914,2]
[346569586,1735098647236,-500.0,0.00012914,2]
[346569588,1735098647246,-500.0,0.00012914,2]
[346569590,1735098647255,-500.0,0.00012914,2]
[346569592,1735098647264,-997.43,0.00012914,2]
[346569594,1735098647273,-500.0,0.00012914,2]
[346569596,1735098647282,-500.0,0.00012914,2]
[346569598,1735098647291,-500.0,0.00012914,2]
[346569600,1735098647300,-536.11,0.00012914,2]
[346569602,1735098647309,-500.0,0.00012914,2]
[346569604,1735098647318,-500.0,0.00012914,2]
[346569606,1735098647327,-500.0,0.00012914,2]
[346569608,1735098647336,-500.0,0.00012914,2]
[346569610,1735098647345,-706.08,0.00012914,2]
[346569611,1735098647354,-539.13,0.00012914,2]
[346569613,1735098647363,-500.0,0.00012914,2]
[346569615,1735098647372,-823.79,0.00012914,2]
[346569617,1735098647381,-500.0,0.00012914,2]
[346569619,1735098647391,-500.0,0.00012914,2]
[346569621,1735098647400,-500.0,0.00012914,2]
[346569624,1735098647409,-500.0,0.00012914,2]
[346569625,1735098647418,-511.51,0.00012914,2]
[346569627,1735098647432,-500.0,0.00012914,2]
[346569629,1735098647442,-500.0,0.00012914,2]
[346569631,1735098647451,-1458.25,0.00012914,2]
[346569633,1735098647460,-500.0,0.00012914,2]
[346569635,1735098647471,-875.03,0.00012914,2]
[346569637,1735098647480,-645.65,0.00012914,2]
[346569639,1735098647489,-500.0,0.00012914,2]
[346569641,1735098647499,-500.0,0.00012914,2]
[346569643,1735098647509,-1080.42,0.00012914,2]
[346569645,1735098647519,-500.0,0.00012914,2]
[346569647,1735098647528,-517.98504504,0.00012914,2]
[346569649,1735098647537,-500.0,0.00012914,2]
[346569651,1735098647547,-338.59332084,0.00012914,2]
[346569653,1735098647556,-500.0,0.00012914,2]
[346569655,1735098647566,-949.46,0.00012914,2]
[346569657,1735098647575,-500.0,0.00012914,2]
[346569659,1735098647586,-500.0,0.00012914,2]
[346569661,1735098647595,-500.0,0.00012914,2]
[346569663,1735098647605,-873.7,0.00012914,2]
[346569665,1735098647614,-564.85,0.00012914,2]
[346569667,1735098647623,-500.0,0.00012914,2]
[346569669,1735098647632,-500.0,0.00012914,2]
[346569671,1735098647641,-500.0,0.00012914,2]
[346569673,1735098647650,-500.0,0.00012914,2]
[346569675,1735098647659,-500.0,0.00012914,2]
[346569678,1735098647669,-500.0,0.00012914,2]
[346569679,1735098647679,-1374.18,0.00012914,2]
[346569682,1735098647688,-1143.56,0.00012914,2]
[346569683,1735098647698,-488.0204988,0.00012914,2]
[346569686,1735098647716,-11.9795012,0.00012914,2]
[346569688,1735098647726,-500.0,0.00012914,2]
[346569690,1735098647735,-500.0,0.00012914,2]
[346569692,1735098647744,-889.53,0.00012914,2]
[346569694,1735098647755,-952.11,0.00012914,2]
[346569696,1735098647764,-500.0,0.00012914,2]
[346569698,1735098647774,-500.0,0.00012914,2]
[346569700,1735098647783,-753.58,0.00012914,2]
[346569702,1735098647793,-852.64,0.00012914,2]
[346569704,1735098647802,-500.0,0.00012914,2]
[346569706,1735098647812,-507.77206685,0.00012914,2]
[346569708,1735098647821,-500.0,0.00012914,2]
[346569729,1735098648003,-500.0,0.00012914,2]
[346569731,1735098648017,-500.0,0.00012914,2]
[346569733,1735098648027,-500.0,0.00012914,2]
[346569735,1735098648037,-500.0,0.00012914,2]
[346569737,1735098648047,-500.0,0.00012914,2]
[346569739,1735098648056,-500.0,0.00012914,2]
[346569741,1735098648067,-500.0,0.00012914,2]
[346569743,1735098648076,-529.51,0.00012914,2]
[346569745,1735098648086,-500.0,0.00012914,2]
[346569747,1735098648095,-500.0,0.00012914,2]
[346569749,1735098648106,-500.0,0.00012914,2]
[346569751,1735098648115,-500.0,0.00012914,2]
[346569753,1735098648125,-500.0,0.00012914,2]
[346569755,1735098648135,-788.79,0.00012914,2]
[346569757,1735098648144,-500.64531192,0.00012914,2]
[346569759,1735098648154,-500.0,0.00012914,2]
[346569761,1735098648164,-500.0,0.00012914,2]
[346569763,1735098648173,-500.0,0.00012914,2]
[346569765,1735098648183,-479.31466741,0.00012914,2]
[346569767,1735098648193,-2089.91,0.00012914,2]
[346569769,1735098648203,-500.0,0.00012914,2]
[346569771,1735098648215,-500.0,0.00012914,2]
[346569773,1735098648225,-500.0,0.00012914,2]
[346569775,1735098648235,-500.0,0.00012914,2]
[346569777,1735098648245,-500.0,0.00012914,2]
[346569779,1735098648255,-1390.54,0.00012914,2]
[346569781,1735098648265,-1312.57,0.00012914,2]
[346569783,1735098648275,-500.0,0.00012914,2]
[346569785,1735098648284,-2575.52,0.00012914,2]
[346569787,1735098648295,-2018.12,0.00012914,2]
[346569789,1735098648304,-500.0,0.00012914,2]
[346569791,1735098648313,-500.0,0.00012914,2]
[346569793,1735098648323,-959.52,0.00012914,2]
[346569795,1735098648334,-500.0,0.00012914,2]
[346569797,1735098648343,-586.08,0.00012914,2]
[346569799,1735098648353,-2772.19,0.00012914,2]
[346569801,1735098648363,-500.0,0.00012914,2]
[346569803,1735098648372,-500.0,0.00012914,2]
[346569804,1735098648381,-505.8413886,0.00012914,2]
[346569807,1735098648390,-511.45811617,0.00012914,2]
[346569808,1735098648400,-2499.55121527,0.00012914,2]
[346569810,1735098648414,-383.5086327,0.00012914,2]
[346569812,1735098648430,-523.85015203,0.00012914,2]
[346569814,1735098648442,-102.97639817,0.00012914,2]
[346569817,1735098648453,-418.26360183,0.00012914,2]
[346569819,1735098648464,-286.64068367,0.00012914,2]
[346569821,1735098648477,-1138.3242965,0.00012914,2]
[346569823,1735098648489,-662.05501983,0.00012914,2]
[346569825,1735098648500,-608.92,0.00012914,2]
[346569826,1735098648510,-683.44,0.00012914,2]
[346569827,1735098648519,-500.0,0.00012914,2]
[346569828,1735098648530,-500.0,0.00012914,2]
[346569829,1735098648540,-500.0,0.00012914,2]
[346569830,1735098648550,-500.0,0.00012914,2]
[346569831,1735098648560,-500.0,0.00012914,2]
[346569832,1735098648570,-337.80400505,0.00012914,2]
[346569833,1735098648580,-500.0,0.00012914,2]
[346569834,1735098648591,-500.0,0.00012914,2]
[346569835,1735098648600,-1792.81,0.00012914,2]
[346569836,1735098648611,-527.91862079,0.00012914,2]